fUSD/lending_fUSD_20240227
["ID","MTS","AMOUNT","RATE_DAILY","PERIOD"]
[315478060,1709071860956,-367.65661062,0.00023898,2]
[315478061,1709071860966,-500.0,0.00023898,2]
[315478062,1709071860975,-1204.42,0.00023898,2]
[315478063,1709071860985,-500.0,0.00023898,2]
[315478064,1709071860995,-500.0,0.00023898,2]
[315478065,1709071861005,-553.08,0.00023898,2]
[315478066,1709071861015,-500.0,0.00023898,2]
[315478067,1709071861024,-937.07,0.00023898,2]
[315478068,1709071861033,-4830.28,0.00023898,2]
[315478069,1709071861042,-940.01,0.00023898,2]
[315478070,1709071861052,-749.61,0.00023898,2]
[315478071,1709071861061,-500.0,0.00023898,2]
[315478072,1709071861070,-500.0,0.00023899,2]
[315478073,1709071861081,-500.0,0.00023899,2]
[315478074,1709071861091,-500.0,0.00023899,2]
[315478075,1709071861100,-500.0,0.00023899,2]
[315478076,1709071861109,-500.0,0.00023899,2]
[315478077,1709071861119,-500.0,0.00023899,2]
[315478078,1709071861128,-500.0,0.00023899,2]
[315478079,1709071861138,-500.0,0.00023899,2]
[315478080,1709071861147,-500.0,0.00023899,2]
[315478081,1709071861157,-500.0,0.00023899,2]
[315478082,1709071861166,-500.0,0.00023899,2]
[315478083,1709071861176,-570.74531196,0.00023899,2]
[315478084,1709071861185,-500.0,0.00023899,2]
[315478085,1709071861195,-518.45636407,0.00023899,2]
[315478086,1709071861204,-500.0,0.00023899,2]
[315478087,1709071861213,-500.0,0.00023899,2]
[315478088,1709071861223,-500.0,0.00023899,2]
[315478089,1709071861232,-500.0,0.00023899,2]
[315478090,1709071861242,-500.0,0.00023899,2]
[315478091,1709071861251,-500.0,0.00023899,2]
[315478092,1709071861261,-500.0,0.00023899,2]
[315478093,1709071861271,-541.1715575,0.00023899,2]
[315478094,1709071861282,-500.0,0.00023899,2]
[315478095,1709071861292,-500.0,0.00023899,2]
[315478096,1709071861303,-526.3088827,0.00023899,2]
[315478097,1709071861313,-500.0,0.00023899,2]
[315478098,1709071861323,-423.98475019,0.00023899,2]
[315478099,1709071861334,-252.79468847,0.00023899,2]
[315478100,1709071861346,-500.0,0.00023899,2]
[315478101,1709071861357,-500.0,0.00023899,2]
[315478102,1709071861367,-526.38,0.00023899,2]
[315478103,1709071861377,-625.63312445,0.00023899,2]
[315478104,1709071861386,-500.0,0.00023899,2]
[315478105,1709071861396,-297.17216079,0.00023899,2]
[315478106,1709071861406,-500.0,0.00023899,2]
[315478107,1709071861418,-549.33796035,0.00023899,2]
[315478108,1709071861428,-500.0,0.00023899,2]
[315478109,1709071861440,-500.0,0.00023899,2]
[315478110,1709071861450,-500.0,0.00023899,2]
[315478111,1709071861462,-500.0,0.00023899,2]
[315478112,1709071861471,-500.0,0.00023899,2]
[315478113,1709071861482,-500.0,0.00023899,2]
[315478114,1709071861491,-500.0,0.00023899,2]
[315478115,1709071861500,-500.0,0.00023899,2]
[315478116,1709071861510,-539.74732884,0.00023899,2]
[315478117,1709071861519,-500.0,0.00023899,2]
[315478118,1709071861529,-500.0,0.00023899,2]
[315478119,1709071861539,-500.0,0.00023899,2]
[315478120,1709071861549,-645.44603028,0.00023899,2]
[315478121,1709071861558,-500.0,0.00023899,2]
[315478122,1709071861569,-520.44516801,0.00023899,2]
[315478123,1709071861579,-508.94619094,0.00023899,2]
[315478124,1709071861589,-500.0,0.00023899,2]
[315478125,1709071861598,-500.0,0.00023899,2]
[315478126,1709071861608,-151.0,0.00023899,7]
[315478127,1709071861617,-500.0,0.00023899,2]
[315478128,1709071861626,-500.0,0.00023899,2]
[315478129,1709071861635,-500.0,0.00023899,2]
[315478130,1709071861645,-500.0,0.00023899,2]
[315478131,1709071861655,-500.0,0.00023899,2]
[315478132,1709071861664,-500.0,0.00023899,2]
[315478133,1709071861674,-500.0,0.00023899,2]
[315478134,1709071861683,-161.05534816,0.00023899,2]
[315478135,1709071861692,-500.0,0.00023899,2]
[315478136,1709071861703,-500.0,0.00023899,2]
[315478137,1709071861712,-332.86666873,0.00023899,2]
[315478138,1709071861721,-500.0,0.00023899,2]
[315478139,1709071861730,-292.03467267,0.00023899,2]
[315478140,1709071861739,-500.0,0.00023899,2]
[315478141,1709071861748,-514.81780649,0.00023899,2]
[315478142,1709071861757,-511.0259202,0.00023899,2]
[315478143,1709071861767,-500.0,0.00023899,2]
[315478144,1709071861776,-500.0,0.00023899,2]
[315478145,1709071861785,-500.0,0.00023899,2]
[315478146,1709071861794,-500.0,0.00023899,2]
[315478147,1709071861803,-500.0,0.00023899,2]
[315478148,1709071861812,-500.0,0.00023899,2]
[315478149,1709071861824,-500.0,0.00023899,2]
[315478150,1709071861834,-500.0,0.00023899,2]
[315478151,1709071861847,-500.0,0.00023899,2]
[315478152,1709071861856,-500.0,0.00023899,2]
[315478153,1709071861865,-500.0,0.00023899,2]
[315478154,1709071861875,-500.0,0.00023899,2]
[315478155,1709071861884,-500.0,0.00023899,2]
[315478156,1709071861894,-500.0,0.00023899,2]
[315478157,1709071861903,-505.50847031,0.00023899,2]
[315478158,1709071861912,-500.0,0.00023899,2]
[315478159,1709071861922,-500.0,0.00023899,2]
[315478160,1709071861932,-500.0,0.00023899,2]
[315478161,1709071861941,-500.0,0.00023899,2]
[315478162,1709071861950,-500.0,0.00023899,2]
[315478163,1709071861959,-500.0,0.00023899,2]
[315478164,1709071861968,-509.96455732,0.00023899,2]
[315478165,1709071861977,-500.0,0.00023899,2]
[315478166,1709071861986,-500.0,0.00023899,2]
[315478167,1709071861995,-500.0,0.00023899,2]
[315478168,1709071862004,-500.0,0.00023899,2]
[315478169,1709071862013,-500.0,0.00023899,2]
[315478170,1709071862022,-500.0,0.00023899,2]
[315478171,1709071862032,-500.0,0.00023899,2]
[315478172,1709071862041,-500.0,0.00023899,2]
[315478173,1709071862051,-500.0,0.00023899,2]
[315478174,1709071862060,-500.0,0.00023899,2]
[315478175,1709071862069,-500.0,0.00023899,2]
[315478176,1709071862078,-500.0,0.00023899,2]
[315478177,1709071862088,-500.0,0.00023899,2]
[315478178,1709071862098,-500.0,0.00023899,2]
[315478179,1709071862107,-500.0,0.00023899,2]
[315478180,1709071862116,-500.0,0.00023899,2]
[315478181,1709071862126,-500.0,0.00023899,2]
[315478182,1709071862135,-500.0,0.00023899,2]
[315478183,1709071862145,-708.41,0.00023899,2]
[315478184,1709071862155,-500.0,0.00023899,2]
[315478185,1709071862165,-600.45,0.00023899,2]
[315478186,1709071862175,-500.0,0.00023899,2]
[315478187,1709071862184,-500.0,0.00023899,2]
[315478188,1709071862194,-1405.16,0.00023899,2]
[315478189,1709071862204,-500.0,0.00023899,2]
[315478190,1709071862214,-500.0,0.00023899,2]
[315478191,1709071862223,-500.0,0.00023899,2]
[315478192,1709071862234,-332.0,0.00023899,2]
[315478193,1709071862243,-500.0,0.00023899,2]
[315478194,1709071862254,-500.0,0.00023899,2]
[315478195,1709071862264,-500.0,0.00023899,2]
[315478196,1709071862273,-740.38,0.00023899,2]
[315478197,1709071862283,-500.0,0.00023899,2]
[315478198,1709071862292,-608.28943781,0.00023899,2]
[315478199,1709071862301,-500.0,0.00023899,2]
[315478200,1709071862311,-500.0,0.00023899,2]
[315478201,1709071862320,-500.0,0.00023899,2]
[315478202,1709071862329,-1278.95,0.00023899,2]
[315478203,1709071862339,-566.18,0.00023899,2]
[315478204,1709071862349,-500.0,0.00023899,2]
[315478205,1709071862467,-500.0,0.00023899,2]
[315478206,1709071862477,-500.0,0.00023899,2]
[315478207,1709071862487,-500.0,0.00023899,2]
[315478208,1709071862498,-500.0,0.00023899,2]
[315478209,1709071862508,-500.0,0.00023899,2]
[315478210,1709071862518,-500.0,0.00023899,2]
[315478211,1709071862528,-500.0,0.00023899,2]
[315478212,1709071862537,-500.0,0.00023899,2]
[315478213,1709071862547,-500.0,0.00023899,2]
[315478214,1709071862556,-559.79491464,0.00023899,2]
[315478215,1709071862566,-500.0,0.00023899,2]
[315478216,1709071862575,-500.0,0.00023899,2]
[315478217,1709071862585,-500.0,0.00023899,2]
[315478218,1709071862595,-500.0,0.00023899,2]
[315478219,1709071862604,-500.0,0.00023899,2]
[315478220,1709071862614,-500.0,0.00023899,2]
[315478221,1709071862623,-500.0,0.00023899,2]
[315478222,1709071862633,-500.0,0.00023899,2]
[315478223,1709071862643,-500.0,0.00023899,2]
[315478224,1709071862652,-696.76,0.00023899,2]
[315478225,1709071862662,-500.0,0.00023899,2]
[315478226,1709071862671,-500.0,0.00023899,2]
[315478227,1709071862680,-500.0,0.00023899,2]
[315478228,1709071862689,-1055.93,0.00023899,2]
[315478229,1709071862699,-500.0,0.00023899,2]
[315478230,1709071862708,-500.0,0.00023899,2]
[315478231,1709071862718,-544.04343593,0.00023899,2]
[315478232,1709071862727,-500.0,0.00023899,2]
[315478233,1709071862737,-1234.14,0.00023899,2]
[315478234,1709071862747,-500.0,0.00023899,2]
[315478235,1709071862757,-500.0,0.00023899,2]
[315478236,1709071862767,-500.0,0.00023899,2]
[315478237,1709071862777,-577.13,0.00023899,2]
[315478238,1709071862786,-620.05,0.00023899,2]
[315478239,1709071862796,-500.0,0.00023899,2]
[315478240,1709071862805,-1945.39,0.00023899,2]
[315478241,1709071862815,-500.0,0.00023899,2]
[315478242,1709071862825,-500.0,0.00023899,2]
[315478243,1709071862835,-917.58,0.00023899,2]
[315478244,1709071862846,-963.89,0.00023899,2]
[315478245,1709071862856,-696.67,0.00023899,2]
[315478246,1709071862865,-500.0,0.00023899,2]
[315478247,1709071862874,-500.0,0.00023899,2]
[315478248,1709071862884,-500.0,0.00023899,2]
[315478249,1709071862893,-151.0,0.00023899,7]
[315478250,1709071862902,-500.0,0.00023899,2]
[315478251,1709071862912,-500.0,0.00023899,2]
[315478252,1709071862922,-500.0,0.00023899,2]
[315478253,1709071862931,-500.0,0.00023899,2]
[315478254,1709071862941,-376.60031488,0.00023899,2]
[315478255,1709071862950,-500.0,0.00023899,2]
[315478256,1709071862960,-499.0,0.00023899,2]
[315478257,1709071862969,-1221.74,0.00023899,2]
[315478258,1709071862978,-500.0,0.00023899,2]
[315478259,1709071862988,-500.0,0.00023899,2]
[315478260,1709071862997,-500.0,0.00023899,2]
[315478261,1709071863008,-500.0,0.00023899,2]
[315478262,1709071863018,-606.53,0.00023899,2]
[315478263,1709071863028,-2022.49,0.00023899,2]
[315478264,1709071863037,-500.0,0.00023899,2]
[315478265,1709071863046,-280.33,0.00023899,2]
[315478266,1709071863056,-500.0,0.00023899,2]
[315478267,1709071863066,-500.0,0.00023899,2]
[315478268,1709071863075,-1376.54,0.00023899,2]
[315478269,1709071863085,-500.0,0.00023899,2]
[315478270,1709071863096,-500.0,0.00023899,2]
[315478271,1709071863106,-500.0,0.00023899,2]
[315478272,1709071863120,-754.28,0.00023899,2]
[315478273,1709071863130,-1888.69,0.00023899,2]
[315478274,1709071863140,-500.0,0.00023899,2]
[315478275,1709071863149,-500.0,0.00023899,2]
[315478276,1709071863159,-500.0,0.00023899,2]
[315478277,1709071863168,-633.59,0.00023899,2]
[315478278,1709071863178,-500.0,0.00023899,2]
[315478279,1709071863187,-1204.42,0.00023899,2]
[315478280,1709071863197,-500.0,0.00023899,2]
[315478281,1709071863207,-1599.3,0.00023899,2]
[315478282,1709071863218,-500.0,0.00023899,2]
[315478283,1709071863228,-500.0,0.00023899,2]
[315478284,1709071863238,-500.0,0.00023899,2]
[315478285,1709071863248,-940.01,0.00023899,2]
[315478286,1709071863258,-500.0,0.00023899,2]
[315478287,1709071863268,-500.0,0.00023899,2]
[315478288,1709071863277,-500.0,0.00023899,2]
[315478289,1709071863287,-500.0,0.00023899,2]
[315478290,1709071863297,-150.0,0.000239,2]
[315478291,1709071863307,-150.0,0.000239,2]
[315478292,1709071863316,-2000.0,0.000239,2]
[315478293,1709071863325,-16000.0,0.000239,2]
[315478294,1709071863335,-160.0,0.000239,2]
[315478295,1709071863346,-500.0,0.000239,2]
[315478296,1709071863356,-5533.90446695,0.000239,2]
[315478297,1709071863365,-1000.0,0.000239,2]
[315478298,1709071863375,-174.80213354,0.000239,2]
[315478299,1709071863385,-152.70955736,0.000239,2]
[315478300,1709071863395,-1000.0,0.000239,7]
[315478301,1709071863405,-3000.0,0.000239,2]
[315478302,1709071863414,-151.0,0.000239,7]
[315478303,1709071863424,-151.0,0.000239,7]
[315478304,1709071863434,-58000.0,0.000239,2]
[315478305,1709071863443,-2484.84807541,0.000239,2]
[315478306,1709071863453,-348.0,0.000239,2]
[315478307,1709071863462,-15452.87415033,0.000239,2]
[315478308,1709071863471,-5800.0,0.000239,2]
[315478309,1709071863481,-151.0,0.000239,7]
[315478310,1709071863491,-3173.48156973,0.000239,2]
[315478311,1709071863501,-21898.57905005,0.000239,2]
[315478312,1709071863510,-152.08,0.000239,2]
[315478313,1709071863519,-152.08,0.000239,2]
[315478314,1709071863529,-152.08,0.000239,2]
[315478315,1709071863539,-152.08,0.000239,2]
[315478316,1709071863548,-152.08,0.000239,2]
[315478317,1709071863558,-152.08,0.000239,2]
[315478318,1709071863567,-152.08,0.000239,2]
[315478319,1709071863577,-152.08,0.000239,2]
[315478320,1709071863586,-152.08,0.000239,2]
[315478321,1709071863597,-152.08,0.000239,2]
[315478322,1709071863607,-152.08,0.000239,2]
[315478323,1709071863616,-152.08,0.000239,2]
[315478324,1709071863627,-152.08,0.000239,2]
[315478325,1709071863637,-152.08,0.000239,2]
[315478326,1709071863647,-1207.67091617,0.000239,2]
[315478327,1709071863656,-151.0,0.000239,7]
[315478328,1709071863667,-4689.02,0.000239,2]
[315478329,1709071863677,-4689.02,0.000239,2]
[315478330,1709071863688,-4689.02,0.000239,2]
[315478331,1709071863697,-4689.02,0.000239,2]
[315478332,1709071863707,-4689.02,0.000239,2]
[315478333,1709071863717,-4689.02,0.000239,2]
[315478334,1709071863728,-4689.02,0.000239,2]
[315478335,1709071863739,-4689.02,0.000239,2]
[315478336,1709071863749,-4689.02,0.000239,2]
[315478337,1709071863759,-4689.02,0.000239,2]
[315478338,1709071863771,-4689.02,0.000239,2]
[315478339,1709071863781,-4689.02,0.000239,2]
[315478340,1709071863791,-4689.02,0.000239,2]
[315478341,1709071863801,-4689.02,0.000239,2]
[315478342,1709071863810,-4689.02,0.000239,2]
[315478343,1709071863821,-4689.02,0.000239,2]
[315478344,1709071863831,-4689.02,0.000239,2]
[315478345,1709071863840,-4689.02,0.000239,2]
[315478346,1709071863853,-4689.02,0.000239,2]
[315478347,1709071863862,-4689.02,0.000239,2]
[315478348,1709071863872,-402.84912432,0.000239,2]
[315478349,1709071863881,-550.02371491,0.000239,2]
[315478350,1709071863891,-150.0,0.00023906,2]
[315478351,1709071863902,-500.0,0.00023909,2]
[315478352,1709071863913,-500.0,0.00023909,2]
[315478353,1709071863922,-500.0,0.00023909,2]
[315478354,1709071863932,-435.42738664,0.00023909,2]
[315478355,1709071863942,-1598.08,0.00023909,2]
[315478356,1709071863952,-706.84,0.00023909,2]
[315478357,1709071863962,-553.08,0.00023909,2]
[315478358,1709071863971,-937.07,0.00023909,2]
[315478359,1709071863981,-4830.28,0.00023909,2]
[315478360,1709071863991,-749.61,0.00023909,2]
[315478361,1709071864001,-3000.0,0.0002391,2]
[315478362,1709071864011,-150.0,0.0002391,2]
[315478363,1709071864021,-2837.862211,0.0002392,2]
[315478364,1709071864031,-241.722574,0.0002392,2]
[315478365,1709071864041,-806.77078,0.0002392,2]
[315478366,1709071864050,-150.950846,0.0002392,2]
[315478367,1709071864060,-1913.584978,0.0002392,2]
[315478368,1709071864069,-3000.0,0.0002392,2]
[315478369,1709071864078,-150.0,0.00023925,2]
[315478370,1709071864087,-150.0,0.00023926,2]
[315478371,1709071864097,-150.94042206,0.00023929,2]
[315478372,1709071864107,-3000.0,0.0002393,2]
[315478373,1709071864116,-150.0,0.0002393,2]
[315478374,1709071864125,-150.0,0.00023934,2]
[315478375,1709071864134,-630.33,0.00023934,2]
[315478376,1709071864143,-150.0,0.00023937,2]
[315478377,1709071864152,-3000.0,0.0002394,2]
[315478378,1709071864162,-3400.0,0.0002395,2]
[315478379,1709071864171,-150.0,0.00023951,2]
[315478380,1709071864180,-151.0,0.00023958,7]
[315478381,1709071864190,-150.0,0.00023958,2]
[315478382,1709071864199,-150.0,0.0002396,2]
[315478383,1709071864209,-1055.93,0.0002396,2]
[315478384,1709071864218,-500.0,0.00023961,2]
[315478385,1709071864227,-500.0,0.00023961,2]
[315478386,1709071864237,-500.0,0.00023961,2]
[315478387,1709071864349,-500.0,0.00023961,2]
[315478388,1709071864360,-500.0,0.00023961,2]
[315478389,1709071864370,-521.99089622,0.00023961,2]
[315478390,1709071864379,-500.0,0.00023961,2]
[315478391,1709071864389,-523.46252412,0.00023961,2]
[315478392,1709071864398,-500.0,0.00023961,2]
[315478393,1709071864407,-500.0,0.00023961,2]
[315478394,1709071864416,-500.0,0.00023961,2]
[315478395,1709071864426,-500.0,0.00023961,2]
[315478396,1709071864436,-500.0,0.00023961,2]
[315478397,1709071864446,-500.0,0.00023961,2]
[315478398,1709071864455,-537.13061598,0.00023961,2]
[315478399,1709071864465,-500.0,0.00023961,2]
[315478400,1709071864474,-296.07204202,0.00023961,2]
[315478401,1709071864485,-470.87487631,0.00023961,2]
[315478402,1709071864495,-500.0,0.00023961,2]
[315478403,1709071864506,-500.0,0.00023961,2]
[315478404,1709071864515,-526.38,0.00023961,2]
[315478405,1709071864526,-500.0,0.00023961,2]
[315478406,1709071864535,-500.0,0.00023961,2]
[315478407,1709071864545,-502.90680677,0.00023961,2]
[315478408,1709071864555,-500.0,0.00023961,2]
[315478409,1709071864564,-500.0,0.00023961,2]
[315478410,1709071864574,-579.88981247,0.00023961,2]
[315478411,1709071864587,-500.0,0.00023961,2]
[315478412,1709071864599,-500.0,0.00023961,2]
[315478413,1709071864609,-500.0,0.00023961,2]
[315478414,1709071864620,-500.0,0.00023961,2]
[315478415,1709071864629,-500.0,0.00023961,2]
[315478416,1709071864641,-500.0,0.00023961,2]
[315478417,1709071864652,-500.0,0.00023961,2]
[315478418,1709071864663,-281.48874644,0.00023961,2]
[315478419,1709071864672,-500.0,0.00023961,2]
[315478420,1709071864682,-500.0,0.00023961,2]
[315478421,1709071864691,-500.0,0.00023961,2]
[315478422,1709071864713,-500.0,0.00023961,2]
[315478423,1709071864725,-500.0,0.00023961,2]
[315478424,1709071864735,-500.0,0.00023961,2]
[315478425,1709071864746,-500.0,0.00023961,2]
[315478426,1709071864757,-500.0,0.00023961,2]
[315478427,1709071864766,-568.3891895,0.00023961,2]
[315478428,1709071864775,-500.0,0.00023961,2]
[315478429,1709071864785,-214.81411413,0.00023961,2]
[315478430,1709071864795,-500.0,0.00023961,2]
[315478431,1709071864804,-500.0,0.00023961,2]
[315478432,1709071864814,-500.0,0.00023961,2]
[315478433,1709071864823,-500.0,0.00023961,2]
[315478434,1709071864833,-500.0,0.00023961,2]
[315478435,1709071864842,-500.0,0.00023961,2]
[315478436,1709071864853,-500.0,0.00023961,2]
[315478437,1709071864863,-500.0,0.00023961,2]
[315478438,1709071864873,-500.0,0.00023961,2]
[315478439,1709071864882,-500.0,0.00023961,2]
[315478440,1709071864892,-500.0,0.00023961,2]
[315478441,1709071864901,-500.0,0.00023961,2]
[315478442,1709071864910,-500.0,0.00023961,2]
[315478443,1709071864920,-500.0,0.00023961,2]
[315478444,1709071864931,-500.0,0.00023961,2]
[315478445,1709071864942,-500.0,0.00023961,2]
[315478446,1709071864951,-500.0,0.00023961,2]
[315478447,1709071864961,-500.0,0.00023961,2]
[315478448,1709071864970,-500.0,0.00023961,2]
[315478449,1709071864979,-635.85431829,0.00023961,2]
[315478450,1709071864988,-500.0,0.00023961,2]
[315478451,1709071864998,-500.0,0.00023961,2]
[315478452,1709071865007,-500.0,0.00023961,2]
[315478453,1709071865017,-500.0,0.00023961,2]
[315478454,1709071865027,-500.0,0.00023961,2]
[315478455,1709071865036,-500.0,0.00023961,2]
[315478456,1709071865046,-500.0,0.00023961,2]
[315478457,1709071865056,-500.0,0.00023961,2]
[315478458,1709071865065,-500.0,0.00023961,2]
[315478459,1709071865074,-500.0,0.00023961,2]
[315478460,1709071865083,-500.0,0.00023961,2]
[315478461,1709071865093,-500.0,0.00023961,2]
[315478462,1709071865102,-500.0,0.00023961,2]
[315478463,1709071865112,-286.46584144,0.00023961,2]
[315478464,1709071865121,-259.98969607,0.00023961,2]
[315478465,1709071865130,-500.0,0.00023961,2]
[315478466,1709071865139,-708.41,0.00023961,2]
[315478467,1709071865149,-500.0,0.00023961,2]
[315478468,1709071865159,-600.45,0.00023961,2]
[315478469,1709071865169,-500.0,0.00023961,2]
[315478470,1709071865207,-1405.16,0.00023961,2]
[315478471,1709071865217,-500.0,0.00023961,2]
[315478472,1709071865227,-500.0,0.00023961,2]
[315478473,1709071865238,-500.0,0.00023961,2]
[315478474,1709071865248,-500.0,0.00023961,2]
[315478475,1709071865257,-500.0,0.00023961,2]
[315478476,1709071865267,-500.0,0.00023961,2]
[315478477,1709071865276,-740.38,0.00023961,2]
[315478478,1709071865286,-500.0,0.00023961,2]
[315478479,1709071865296,-500.0,0.00023961,2]
[315478480,1709071865305,-500.0,0.00023961,2]
[315478481,1709071865315,-1278.95,0.00023961,2]
[315478482,1709071865326,-500.0,0.00023961,2]
[315478483,1709071865336,-500.0,0.00023961,2]
[315478484,1709071865347,-500.0,0.00023961,2]
[315478485,1709071865356,-500.0,0.00023961,2]
[315478486,1709071865366,-500.0,0.00023961,2]
[315478487,1709071865376,-500.0,0.00023961,2]
[315478488,1709071865386,-505.95123704,0.00023961,2]
[315478489,1709071865395,-500.0,0.00023961,2]
[315478490,1709071865405,-500.0,0.00023961,2]
[315478491,1709071865414,-500.0,0.00023961,2]
[315478492,1709071865424,-500.0,0.00023961,2]
[315478493,1709071865434,-500.0,0.00023961,2]
[315478494,1709071865444,-500.0,0.00023961,2]
[315478495,1709071865453,-500.0,0.00023961,2]
[315478496,1709071865462,-500.0,0.00023961,2]
[315478497,1709071865472,-500.0,0.00023961,2]
[315478498,1709071865482,-500.0,0.00023961,2]
[315478499,1709071865491,-500.0,0.00023961,2]
[315478500,1709071865501,-500.0,0.00023961,2]
[315478501,1709071865510,-500.0,0.00023961,2]
[315478502,1709071865520,-500.0,0.00023961,2]
[315478503,1709071865529,-500.0,0.00023961,2]
[315478504,1709071865539,-500.0,0.00023961,2]
[315478505,1709071865548,-313.65,0.00023961,2]
[315478506,1709071865558,-500.0,0.00023961,2]
[315478507,1709071865568,-500.0,0.00023961,2]
[315478508,1709071865577,-500.0,0.00023961,2]
[315478509,1709071865586,-500.0,0.00023961,2]
[315478510,1709071865597,-642.40605004,0.00023962,2]
[315478511,1709071865607,-174.29560548,0.00023962,2]
[315478512,1709071865617,-696.76,0.00023962,2]
[315478513,1709071865626,-500.0,0.00023962,2]
[315478514,1709071865636,-500.0,0.00023962,2]
[315478515,1709071865646,-500.0,0.00023962,2]
[315478516,1709071865655,-590.57,0.00023962,2]
[315478517,1709071865665,-500.0,0.00023962,2]
[315478518,1709071865675,-1234.14,0.00023962,2]
[315478519,1709071865685,-500.0,0.00023962,2]
[315478520,1709071865694,-500.0,0.00023962,2]
[315478521,1709071865703,-500.0,0.00023962,2]
[315478522,1709071865713,-577.13,0.00023962,2]
[315478523,1709071865722,-620.05,0.00023962,2]
[315478524,1709071865731,-1945.39,0.00023962,2]
[315478525,1709071865741,-500.0,0.00023962,2]
[315478526,1709071865750,-500.0,0.00023962,2]
[315478527,1709071865760,-917.58,0.00023962,2]
[315478528,1709071865769,-963.89,0.00023962,2]
[315478529,1709071865779,-696.67,0.00023962,2]
[315478530,1709071865792,-500.0,0.00023962,2]
[315478531,1709071865803,-500.0,0.00023962,2]
[315478532,1709071865813,-500.0,0.00023962,2]
[315478533,1709071865823,-500.0,0.00023962,2]
[315478534,1709071865834,-500.0,0.00023962,2]
[315478535,1709071865847,-500.0,0.00023962,2]
[315478536,1709071865858,-1221.74,0.00023962,2]
[315478537,1709071865867,-500.0,0.00023962,2]
[315478538,1709071865878,-500.0,0.00023962,2]
[315478539,1709071865888,-500.0,0.00023962,2]
[315478540,1709071865897,-606.53,0.00023962,2]
[315478541,1709071865907,-500.0,0.00023962,2]
[315478542,1709071865917,-2022.49,0.00023962,2]
[315478543,1709071865927,-500.0,0.00023962,2]
[315478544,1709071865937,-500.0,0.00023962,2]
[315478545,1709071865947,-500.0,0.00023962,2]
[315478546,1709071865956,-500.0,0.00023962,2]
[315478547,1709071865966,-500.0,0.00023962,2]
[315478548,1709071865976,-1376.54,0.00023962,2]
[315478549,1709071865985,-500.0,0.00023962,2]
[315478550,1709071865996,-500.0,0.00023962,2]
[315478551,1709071866006,-754.28,0.00023962,2]
[315478552,1709071866015,-1888.69,0.00023962,2]
[315478553,1709071866025,-500.0,0.00023962,2]
[315478554,1709071866035,-1598.08,0.00023962,2]
[315478555,1709071866044,-500.0,0.00023962,2]
[315478556,1709071866193,-706.84,0.00023962,2]
[315478557,1709071866204,-633.59,0.00023962,2]
[315478558,1709071866214,-151.0,0.00023962,7]
[315478559,1709071866224,-500.0,0.00023962,2]